fUST/lending_fUST_20260111
["ID","MTS","AMOUNT","RATE_DAILY","PERIOD"]
[401322331,1768135838967,-200.0,0.00012329,2]
[401322332,1768135838976,-864.0,0.0001234,2]
[401322333,1768135838986,-250.0,0.00012769,2]
[401322334,1768135838996,-500.0,0.00013273,2]
[401322335,1768135839005,-500.0,0.00013273,2]
[401322336,1768135839015,-155.72124395,0.00013273,2]
[401322337,1768135839025,-500.0,0.00013273,2]
[401322338,1768135839034,-503.26850674,0.00013273,2]
[401322339,1768135839044,-1000.0,0.00013573,2]
[401322340,1768135839054,-500.0,0.00013698,2]
[401322341,1768135839063,-500.0,0.00013698,2]
[401322342,1768135839073,-500.0,0.00013698,2]
[401322343,1768135839083,-503.65209141,0.00013698,2]
[401322344,1768135839092,-500.0,0.00013698,2]
[401322345,1768135839101,-239.37126777,0.00013698,2]
[401322346,1768135839114,-150.1,0.00013699,2]
[401322347,1768135839124,-2589.040574,0.00013699,2]
[401322348,1768135839134,-500.0,0.00013699,2]
[401322349,1768135839144,-366.95119537,0.00013699,2]
[401322350,1768135839154,-1000.0,0.00013821,2]
[401322351,1768135839163,-1000.0,0.00013821,2]
[401322352,1768135839172,-570.28131147,0.00013821,2]
[401322353,1768135839182,-204.0,0.00014,2]
[401322354,1768135839191,-319.8575815,0.00014247,2]
[401322355,1768135839200,-1500.0,0.00014368,2]
[401322356,1768135839210,-1178.38612751,0.00014368,2]
[401322357,1768135839219,-194.80800863,0.00014916,2]
[401322358,1768135839228,-1000.0,0.00014931,2]
[401322359,1768135839238,-244.0,0.00014931,2]
[401322360,1768135839247,-2500.0,0.00015364,2]
[401322361,1768135839256,-157.77,0.00015364,2]
[401322362,1768135839265,-157.77,0.00015364,2]
[401322363,1768135839274,-157.77,0.00015364,2]
[401322364,1768135839283,-157.78,0.00015364,2]
[401322365,1768135839293,-231.0,0.00016,2]
[401322366,1768135839302,-1000.0,0.00016424,2]
[401322367,1768135839311,-492.0,0.00016424,2]
[401322368,1768135839321,-500.0,0.00016438,2]
[401322369,1768135839330,-500.0,0.00016438,2]
[401322370,1768135839339,-306.14318431,0.00016438,2]
[401322371,1768135839352,-500.0,0.00016438,2]
[401322372,1768135839363,-500.0,0.00016438,2]
[401322373,1768135839372,-258.0,0.00018,2]
[401322374,1768135839382,-1000.0,0.00018066,2]
[401322375,1768135839392,-791.0,0.00018066,2]
[401322376,1768135839403,-1498.29,0.000192,2]
[401322377,1768135839413,-1000.0,0.00019873,2]
[401322378,1768135839424,-1000.0,0.00019873,2]
[401322379,1768135839433,-285.0,0.0002,2]
[401322380,1768135839442,-500.0,0.0002,20]
[401322381,1768135839451,-2589.040574,0.00020548,2]
[401322382,1768135839461,-500.0,0.00020592,2]
[401322383,1768135839470,-500.0,0.00020592,2]
[401322385,1768135839479,-500.0,0.00020592,2]
[401322386,1768135839489,-500.0,0.00020592,2]
[401322387,1768135839499,-532.96136633,0.00020592,2]
[401322388,1768135839508,-500.0,0.00020592,2]
[401322389,1768135839518,-500.0,0.00020592,2]
[401322390,1768135839527,-500.0,0.00020592,2]
[401322391,1768135839536,-500.0,0.00020592,2]
[401322392,1768135839547,-500.0,0.00020592,2]
[401322393,1768135839556,-500.0,0.00020592,2]
[401322394,1768135839566,-500.0,0.00020592,2]
[401322395,1768135839575,-500.0,0.00020592,2]
[401322396,1768135839585,-500.0,0.00020592,2]
[401322397,1768135839595,-500.0,0.00020592,2]
[401322398,1768135839605,-500.0,0.00020592,2]
[401322399,1768135839615,-1000.0,0.0002186,10]
[401322400,1768135839625,-1000.0,0.0002186,10]
[401322401,1768135839634,-579.0,0.0002186,10]
[401322403,1768135839644,-312.0,0.00022,2]
[401322404,1768135839654,-1041.66666667,0.00022403,2]
[401322405,1768135839663,-339.0,0.00024,2]
[401322407,1768135839673,-1000.0,0.00024046,10]
[401322409,1768135839682,-1000.0,0.00024046,10]
[401322410,1768135839691,-1000.0,0.00024046,10]
[401322411,1768135839701,-151.0,0.00024088,2]
[401322412,1768135839710,-184.0,0.00024658,14]
[401322413,1768135839720,-17651.3744642,0.000249,2]
[401322414,1768135839730,-1498.29,0.000253,14]
[401322415,1768135839739,-151.0,0.00025702,2]
[401322416,1768135839749,-366.0,0.00026,2]
[401322417,1768135839758,-1000.0,0.00026451,30]
[401322418,1768135839768,-1000.0,0.00026451,30]
[401322419,1768135839777,-1000.0,0.00026451,30]
[401322420,1768135839787,-715.0,0.00026451,30]
[401322421,1768135839797,-7060.54978566,0.0002698,2]
[401322422,1768135839806,-437.34740616,0.00026989,2]
[401322423,1768135839816,-100000.0,0.0002699,2]
[401322424,1768135839826,-156.98,0.000271,2]
[401322425,1768135839836,-151.0,0.000272,13]
[401322426,1768135839845,-151.0,0.000273,16]
[401322427,1768135839855,-151.0,0.000273,12]
[401322429,1768135839865,-151.0,0.00027316,2]
[401322431,1768135839874,-151.0,0.000274,18]
[401322433,1768135839884,-151.0,0.000274,10]
[401322434,1768135839894,-3530.27489283,0.00027436,2]
[401322435,1768135839907,-500.0,0.00027455,2]
[401322437,1768135839917,-500.0,0.00027455,2]
[401322439,1768135839926,-500.0,0.00027455,2]
[401322441,1768135839936,-500.0,0.00027455,2]
[401322442,1768135839946,-473.07295643,0.00027455,2]
[401322443,1768135839956,-1000000.0,0.00027456,2]
[401322444,1768135839966,-8020.2,0.000275,2]
[401322446,1768135839976,-192.83,0.000276,2]
[401322448,1768135839985,-500.0,0.00027672,2]
[401322450,1768135839995,-500.0,0.00027672,2]
[401322452,1768135840004,-500.0,0.00027672,2]
[401322454,1768135840017,-176.23516734,0.00027672,2]
[401322456,1768135840026,-500.0,0.00027672,2]
[401322458,1768135840035,-500.0,0.00027672,2]
[401322460,1768135840044,-500.0,0.00027672,2]
[401322462,1768135840053,-171.65605742,0.00027672,2]
[401322464,1768135840063,-500.0,0.00027672,2]
[401322466,1768135840072,-500.0,0.00027809,2]
[401322468,1768135840080,-500.0,0.00027809,2]
[401322470,1768135840092,-500.0,0.00027809,2]
[401322472,1768135840101,-503.05659276,0.00027809,2]
[401322474,1768135840112,-598.52490689,0.00027809,2]
[401322476,1768135840121,-500.0,0.00027809,2]
[401322478,1768135840130,-500.0,0.00027809,2]
[401322480,1768135840139,-500.0,0.00027946,2]
[401322482,1768135840149,-500.0,0.00027946,2]
[401322484,1768135840158,-500.0,0.00027946,2]
[401322486,1768135840167,-179.07075974,0.00027946,2]
[401322488,1768135840176,-500.0,0.00027946,2]
[401322490,1768135840185,-500.0,0.00027946,2]
[401322492,1768135840196,-393.0,0.00028,2]
[401322494,1768135840205,-500.0,0.00028083,2]
[401322496,1768135840214,-500.0,0.00028083,2]
[401322498,1768135840223,-500.0,0.00028083,2]
[401322500,1768135840232,-500.0,0.00028083,2]
[401322502,1768135840241,-192.83,0.000281,2]
[401322504,1768135840250,-487.28484085,0.0002822,2]
[401322506,1768135840260,-263.97622948,0.0002822,2]
[401322508,1768135840269,-500.0,0.0002822,2]
[401322510,1768135840278,-500.0,0.0002822,2]
[401322512,1768135840287,-264.95729538,0.0002822,2]
[401322514,1768135840298,-500.0,0.0002822,2]
[401322517,1768135840307,-1498.29,0.000283,14]
[401322520,1768135840316,-500.0,0.00028357,2]
[401322523,1768135840325,-500.0,0.00028357,2]
[401322525,1768135840334,-500.0,0.00028357,2]
[401322527,1768135840344,-155.0,0.00028493,29]
[401322529,1768135840354,-500.0,0.00028494,2]
[401322531,1768135840364,-500.0,0.00028494,2]
[401322533,1768135840373,-500.0,0.00028494,2]
[401322535,1768135840382,-192.83,0.000286,2]
[401322537,1768135840391,-500.0,0.00028631,2]
[401322539,1768135840400,-500.0,0.00028631,2]
[401322541,1768135840410,-255.99235489,0.00028631,2]
[401322543,1768135840419,-500.0,0.00028768,2]
[401322545,1768135840428,-500.0,0.00028768,2]
[401322547,1768135840437,-500.0,0.00028905,2]
[401322549,1768135840446,-500.0,0.00028905,2]
[401322551,1768135840455,-151.0,0.0002893,3]
[401322553,1768135840464,-500.0,0.00029042,2]
[401322555,1768135840473,-620.9785477,0.00029042,2]
[401322557,1768135840482,-192.83,0.000291,2]
[401322559,1768135840491,-500.0,0.00029179,2]
[401322561,1768135840500,-500.0,0.00029316,2]
[401322563,1768135840510,-500.0,0.00029453,2]
[401322565,1768135840520,-152.72644825,0.0002959,2]
[401322567,1768135840531,-192.83,0.000296,2]
[401322569,1768135840540,-420.0,0.0003,2]
[401322571,1768135840550,-8020.2,0.0003,2]
[401322573,1768135840559,-500.0,0.0003,30]
[401322575,1768135840569,-151.0,0.0003,14]
[401322577,1768135840579,-192.83,0.000301,2]
[401322579,1768135840588,-203.805,0.00030103,25]
[401322581,1768135840598,-300.0,0.00030137,5]
[401322583,1768135840607,-500.0,0.00030137,30]
[401322585,1768135840616,-500.0,0.00030137,30]
[401322587,1768135840625,-500.0,0.00030137,30]
[401322589,1768135840634,-500.0,0.00030137,30]
[401322591,1768135840644,-500.0,0.00030137,30]
[401322593,1768135840653,-500.0,0.00030137,30]
[401322595,1768135840662,-500.0,0.00030137,30]
[401322597,1768135840671,-500.0,0.00030137,30]
[401322599,1768135840680,-500.0,0.00030137,30]
[401322601,1768135840689,-500.0,0.00030137,30]
[401322603,1768135840699,-500.0,0.00030137,30]
[401322605,1768135840709,-500.0,0.00030137,30]
[401322607,1768135840718,-500.0,0.00030137,30]
[401322609,1768135840728,-500.0,0.00030137,30]
[401322617,1768135840818,-500.0,0.00030137,30]
[401322618,1768135840838,-500.0,0.00030137,30]
[401322619,1768135840847,-500.0,0.00030137,30]
[401322620,1768135840856,-500.0,0.00030137,30]
[401322621,1768135840865,-500.0,0.00030137,30]
[401322622,1768135840874,-500.0,0.00030137,30]
[401322623,1768135840883,-500.0,0.00030137,30]
[401322624,1768135840893,-500.0,0.00030137,30]
[401322625,1768135840906,-500.0,0.00030137,30]
[401322626,1768135840914,-500.0,0.00030137,30]
[401322627,1768135840923,-151.0,0.00030544,4]
[401322628,1768135840932,-1498.29,0.000306,14]
[401322629,1768135840941,-151.0,0.000311,20]
[401322630,1768135840950,-3384.35816802,0.00031155,2]
[401322631,1768135840958,-7607.19107216,0.00031155,2]
[401322632,1768135840967,-151.0,0.00031335,14]
[401322633,1768135840976,-151.0,0.000314,17]
[401322634,1768135840984,-151.0,0.000317,12]
[401322635,1768135840993,-447.0,0.00032,2]
[401322636,1768135841002,-151.0,0.00032,11]
[401322637,1768135841010,-2600.19116857,0.00032025,2]
[401322638,1768135841020,-151.0,0.00032048,2]
[401322639,1768135841028,-151.0,0.00032048,2]
[401322640,1768135841037,-151.0,0.00032048,2]
[401322641,1768135841046,-151.0,0.00032048,2]
[401322642,1768135841054,-151.0,0.00032048,2]
[401322643,1768135841063,-151.0,0.00032048,2]
[401322644,1768135841072,-151.0,0.00032048,2]
[401322645,1768135841082,-151.0,0.00032048,2]
[401322647,1768135841091,-151.0,0.00032048,2]
[401322648,1768135841101,-151.0,0.00032048,2]
[401322650,1768135841110,-151.0,0.00032048,2]
[401322652,1768135841120,-151.0,0.00032048,2]
[401322655,1768135841129,-21586.80632037,0.00032048,2]
[401322657,1768135841139,-151.0,0.00032048,2]
[401322658,1768135841148,-151.0,0.00032048,2]
[401322660,1768135841157,-151.0,0.00032048,2]
[401322663,1768135841167,-151.0,0.00032048,2]
[401322665,1768135841176,-151.0,0.00032048,2]
[401322667,1768135841185,-151.0,0.00032048,2]
[401322669,1768135841195,-151.0,0.00032048,2]
[401322670,1768135841204,-151.0,0.00032048,2]
[401322672,1768135841213,-151.0,0.00032048,2]
[401322674,1768135841222,-151.0,0.00032048,2]
[401322676,1768135841231,-151.0,0.00032048,2]
[401322678,1768135841241,-151.0,0.00032048,2]
[401322680,1768135841250,-151.0,0.00032048,2]
[401322682,1768135841259,-151.0,0.00032048,2]
[401322684,1768135841269,-151.0,0.00032048,2]
[401322686,1768135841278,-151.0,0.00032048,2]
[401322688,1768135841287,-151.0,0.00032048,2]
[401322690,1768135841296,-151.0,0.00032048,2]
[401322692,1768135841305,-151.0,0.00032048,2]
[401322694,1768135841314,-151.0,0.00032048,2]
[401322696,1768135841323,-151.0,0.00032048,2]
[401322698,1768135841333,-151.0,0.00032048,2]
[401322701,1768135841343,-151.0,0.00032048,2]
[401322703,1768135841352,-151.0,0.00032048,2]
[401322704,1768135841361,-151.0,0.00032048,2]
[401322707,1768135841370,-151.0,0.00032048,2]
[401322708,1768135841380,-151.0,0.00032048,2]
[401322710,1768135841389,-151.0,0.00032048,2]
[401322712,1768135841398,-151.0,0.00032048,2]
[401322714,1768135841407,-156.587,0.00032048,2]
[401322716,1768135841417,-152.09143049,0.00032048,2]
[401322718,1768135841426,-424.0,0.0003207,7]
[401322720,1768135841435,-151.0,0.00032158,5]
[401322722,1768135841444,-2600.19116857,0.00032288,2]
[401322724,1768135841453,-151.0,0.00032299,5]
[401322726,1768135841462,-445.202766,0.00032299,5]
[401322728,1768135841472,-461.67526834,0.00032299,5]
[401322730,1768135841481,-478.75725327,0.00032299,5]
[401322732,1768135841490,-151.0,0.00032299,5]
[401322734,1768135841499,-250.0,0.00032299,5]
[401322736,1768135841508,-496.47127164,0.00032299,5]
[401322738,1768135841517,-151.0,0.00032299,5]
[401322740,1768135841526,-250.0,0.00032299,5]
[401322742,1768135841535,-514.84070869,0.00032299,5]
[401322744,1768135841544,-250.0,0.00032299,5]
[401322746,1768135841554,-533.88981491,0.00032299,5]
[401322748,1768135841563,-553.64373807,0.00032299,5]
[401322750,1768135841572,-574.12855637,0.00032299,5]
[401322751,1768135841582,-151.0,0.00032299,5]
[401322753,1768135841591,-151.0,0.00032299,5]
[401322755,1768135841600,-595.37131296,0.00032299,5]
[401322757,1768135841610,-250.15738416,0.00032299,5]
[401322759,1768135841619,-329.47719904,0.00032299,5]
[401322761,1768135841629,-151.0,0.00032299,5]
[401322763,1768135841638,-250.0,0.00032299,5]
[401322765,1768135841648,-151.0,0.00032299,5]
[401322767,1768135841657,-296.59935167,0.00032299,5]
[401322770,1768135841667,-2150.738,0.00032299,5]
[401322772,1768135841676,-2230.315306,0.00032299,5]
[401322774,1768135841685,-2312.83697232,0.00032299,5]
[401322775,1768135841694,-2398.4119403,0.00032299,5]
[401322778,1768135841704,-256.83787609,0.00032299,5]
[401322780,1768135841714,-1095.40809829,0.00032299,5]
[401322781,1768135841724,-250.0,0.00032299,5]
[401322783,1768135841733,-271.40103972,0.00032299,5]
[401322786,1768135841743,-162.380719,0.00032299,5]
[401322787,1768135841752,-223.13477496,0.00032299,5]
[401322790,1768135841761,-151.0,0.000323,19]
[401322792,1768135841770,-304.58609172,0.000325,2]
[401322794,1768135841779,-354.0,0.00032529,7]
[401322796,1768135841788,-3125.9838715,0.00032529,2]
[401322798,1768135841797,-11380.9187739,0.00032548,2]
[401322800,1768135841807,-95660.2706487,0.00032548,2]
[401322802,1768135841816,-151.0,0.000326,12]
[401322804,1768135841826,-8020.2,0.000326,2]
[401322806,1768135841836,-2600.19116857,0.00032601,2]
[401322808,1768135841846,-151.61039102,0.0003267,14]
[401322810,1768135841859,-478217.20203591,0.0003267,2]
[401322847,1768135844333,-295.0,0.00022523,2]
[401322848,1768135844345,-352.0,0.00022788,2]
[401322849,1768135844355,-457.0,0.00023045,2]
[401322850,1768135844366,-12685.37607963,0.00024088,2]
[401322851,1768135844378,-37314.62392037,0.00024088,2]
[401322852,1768135844389,-150.1,0.00025202,2]
[401322853,1768135844400,-1000.0,0.00029096,30]
[401322854,1768135844410,-1000.0,0.00029096,30]
[401322855,1768135844420,-1000.0,0.00029096,30]
[401322856,1768135844431,-13090.33751246,0.0003267,2]
[401322877,1768135845971,-728.34026677,0.0003267,2]
[401322878,1768135868925,154.05532899,0.00022982,120]
[401322880,1768135878838,105.04026155,0.00023409,94]
[401322881,1768135878859,144.44577314,0.00023409,94]
[401322882,1768135879543,40.92286369,0.0002354,102]
[401322883,1768135879564,185.36863683,0.0002354,102]
[401322884,1768135879585,23.19453417,0.0002354,102]
[401322885,1768135880252,8.3387713,0.00023672,110]
[401322886,1768135880273,185.0,0.00023672,110]
[401322887,1768135880295,56.14726339,0.00023672,110]
[401322888,1768135988855,192.3030788,0.00022982,120]
[401322890,1768136145077,159.46,8.324e-05,2]
[401322891,1768136159111,-186.03,8.644e-05,2]
[401322893,1768136214466,155.25,7.915e-05,2]
[401322894,1768136215104,177.43,8.208e-05,2]
[401322895,1768136215510,199.61,8.501e-05,2]
[401322896,1768136225879,-221.79,8.794e-05,2]
[401322897,1768136404089,418.14,5e-05,2]
[401322898,1768136404555,418.14,5.5e-05,2]
[401322899,1768136405116,418.14,6e-05,2]
[401322900,1768136405748,418.14,6.5e-05,2]
[401322901,1768136406351,418.14,7.1e-05,2]
[401322902,1768136407043,418.14,7.6e-05,2]
[401322903,1768136407506,418.14,8.1e-05,2]
[401322904,1768136423316,-418.14,8.6e-05,2]
[401322905,1768136440365,417.94,5e-05,2]
[401322906,1768136598897,-4238.5106177,8.872e-05,2]
[401322909,1768136879658,469.66,5.974e-05,2]
[401322910,1768136879934,469.66,5.974e-05,2]
[401322915,1768137004520,182.56,5e-05,2]
[401322916,1768137007164,182.55,5e-05,2]
[401323078,1768137038174,-418.14,9.1e-05,2]
[401323080,1768137038184,-547.0,9.1e-05,2]
[401323081,1768137038194,-241.80610319,9.225e-05,2]
[401323083,1768137038203,-418.14,9.6e-05,2]
[401323085,1768137038213,-245.983,9.702e-05,2]
[401323086,1768137038227,-300.0,9.793e-05,2]
[401323088,1768137038236,-300.0,9.793e-05,2]
[401323090,1768137038246,-300.0,9.793e-05,2]
[401323092,1768137038255,-1200.0,9.793e-05,2]
[401323094,1768137038264,-1000000.0,9.794e-05,2]
[401323096,1768137038274,-500.0,9.8e-05,2]
[401323098,1768137038284,-300.0,9.892e-05,2]
[401323100,1768137038293,-50000.0,9.893e-05,2]
[401323102,1768137038303,-500.0,9.893e-05,2]
[401323104,1768137038312,-500.0,9.893e-05,2]
[401323106,1768137038322,-327.97013448,9.893e-05,2]
[401323108,1768137038331,-500.0,9.893e-05,2]
[401323109,1768137038346,-636.9296582,9.893e-05,2]
[401323110,1768137038355,-500.0,9.893e-05,2]
[401323111,1768137038365,-500.0,9.893e-05,2]
[401323112,1768137038374,-344.62617307,9.893e-05,2]
[401323113,1768137038386,-500.0,9.897e-05,2]
[401323114,1768137038395,-500.0,9.897e-05,2]
[401323115,1768137038405,-500.0,9.897e-05,2]
[401323116,1768137038416,-500.0,9.897e-05,2]
[401323117,1768137038425,-500.0,9.897e-05,2]
[401323118,1768137038435,-500.0,9.897e-05,2]
[401323119,1768137038445,-500.0,9.897e-05,2]
[401323120,1768137038455,-500.0,9.897e-05,2]
[401323121,1768137038465,-500.0,9.897e-05,2]
[401323122,1768137038474,-500.0,9.897e-05,2]
[401323123,1768137038484,-500.0,9.897e-05,2]
[401323124,1768137038493,-500.0,9.897e-05,2]
[401323125,1768137038503,-500.0,9.897e-05,2]
[401323126,1768137038512,-500.0,9.897e-05,2]
[401323127,1768137038522,-500.0,9.899e-05,2]
[401323128,1768137038531,-500.0,9.9e-05,2]
[401323129,1768137038540,-3176.86810458,9.9e-05,2]
[401323130,1768137038549,-1000.0,0.0001,2]
[401323131,1768137038559,-300.0,0.00010097,2]
[401323132,1768137038568,-300.0,0.00010097,2]
[401323133,1768137038577,-300.0,0.00010097,2]
[401323134,1768137038587,-300.0,0.00010097,2]
[401323135,1768137038596,-300.0,0.00010097,2]
[401323136,1768137038606,-300.0,0.00010097,2]
[401323137,1768137038615,-300.0,0.00010097,2]
[401323138,1768137038624,-300.0,0.00010097,2]
[401323139,1768137038634,-300.0,0.00010097,2]
[401323140,1768137038643,-300.0,0.00010097,2]
[401323141,1768137038653,-300.0,0.00010097,2]
[401323142,1768137038662,-300.0,0.00010097,2]
[401323143,1768137038672,-300.0,0.00010097,2]
[401323144,1768137038681,-300.0,0.00010097,2]
[401323145,1768137038691,-300.0,0.00010097,2]
[401323146,1768137038700,-600.0,0.00010097,2]
[401323147,1768137038709,-418.14,0.000101,2]
[401323148,1768137038719,-500.0,0.00010173,2]
[401323149,1768137038728,-500.0,0.00010447,2]
[401323150,1768137038737,-418.14,0.000106,2]
[401323151,1768137038747,-500.0,0.00010721,2]
[401323152,1768137038756,-420.0,0.00010772,2]
[401323153,1768137038766,-999.0,0.00010959,2]
[401323154,1768137038775,-500.0,0.00010995,2]
[401323155,1768137038784,-151.0,0.00011,2]
[401323156,1768137038794,-151.0,0.00011,2]
[401323157,1768137038803,-1000.0,0.00011,2]
[401323158,1768137038813,-151.0,0.00011,2]
[401323159,1768137038822,-418.14,0.000111,2]
[401323160,1768137038832,-253.38,0.000111,2]
[401323161,1768137038842,-253.38,0.000111,2]
[401323162,1768137038852,-253.38,0.000111,2]
[401323163,1768137038862,-253.38,0.000111,2]
[401323164,1768137038872,-253.38,0.000111,2]
[401323165,1768137038881,-253.38,0.000111,2]
[401323166,1768137038892,-253.35,0.000111,2]
[401323167,1768137038901,-720.0,0.00011107,2]
[401323168,1768137038910,-418.14,0.000112,2]
[401323169,1768137038919,-285.33120177,0.00011225,2]
[401323170,1768137038929,-500.0,0.00011269,2]
[401323171,1768137038939,-500.0,0.00011543,2]
[401323172,1768137038948,-418.14,0.000117,2]
[401323173,1768137038958,-500.0,0.00011817,2]
[401323174,1768137038967,-587.0,0.00011849,2]
[401323175,1768137038977,-2000.0,0.00012,2]
[401323176,1768137038986,-250.0,0.00012024,2]
[401323177,1768137038996,-500.0,0.00012091,2]
[401323178,1768137039005,-418.14,0.000122,2]
[401323179,1768137039015,-864.0,0.00012217,2]
[401323180,1768137039024,-1432.63,0.00012329,2]
[401323181,1768137039033,-1193.86,0.00012329,2]
[401323182,1768137039043,-994.89,0.00012329,2]
[401323183,1768137039052,-829.07,0.00012329,2]
[401323184,1768137039061,-690.89,0.00012329,2]
[401323185,1768137039071,-575.74,0.00012329,2]
[401323186,1768137039080,-479.79,0.00012329,2]
[401323187,1768137039090,-399.82,0.00012329,2]
[401323188,1768137039100,-333.19,0.00012329,2]
[401323189,1768137039109,-277.65,0.00012329,2]
[401323190,1768137039119,-231.38,0.00012329,2]
[401323191,1768137039128,-192.82,0.00012329,2]
[401323192,1768137039138,-160.68,0.00012329,2]
[401323193,1768137039148,-803.42,0.00012329,2]
[401323194,1768137039158,-151.88,0.00012329,2]
[401323195,1768137039168,-1030.16010818,0.00012329,2]
[401323196,1768137039178,-1030.16010818,0.00012329,2]
[401323197,1768137039187,-1030.16010818,0.00012329,2]
[401323198,1768137039196,-1030.16010818,0.00012329,2]
[401323199,1768137039205,-1030.16010818,0.00012329,2]
[401323200,1768137039214,-1030.16010818,0.00012329,2]
[401323201,1768137039223,-1030.16010818,0.00012329,2]
[401323202,1768137039232,-1030.16010818,0.00012329,2]
[401323203,1768137039241,-1030.16010818,0.00012329,2]
[401323204,1768137039251,-1030.16010818,0.00012329,2]
[401323205,1768137039260,-1030.16010818,0.00012329,2]
[401323206,1768137039269,-1030.16010818,0.00012329,2]
[401323207,1768137039279,-1030.16010818,0.00012329,2]
[401323208,1768137039288,-1030.16010818,0.00012329,2]
[401323209,1768137039297,-1030.16010818,0.00012329,2]
[401323210,1768137039306,-1030.16010818,0.00012329,2]
[401323211,1768137039315,-1030.16010818,0.00012329,2]
[401323212,1768137039324,-1030.16010818,0.00012329,2]
[401323213,1768137039334,-1030.16010818,0.00012329,2]
[401323214,1768137039346,-1030.16010818,0.00012329,2]
[401323215,1768137039355,-1030.16010818,0.00012329,2]
[401323216,1768137039364,-1030.16010818,0.00012329,2]
[401323217,1768137039373,-1030.16010818,0.00012329,2]
[401323218,1768137039384,-1030.16010818,0.00012329,2]
[401323219,1768137039393,-1030.16010818,0.00012329,2]
[401323220,1768137039403,-1030.16010818,0.00012329,2]
[401323221,1768137039414,-1030.16010818,0.00012329,2]
[401323222,1768137039424,-1030.16010818,0.00012329,2]
[401323223,1768137039433,-1030.16010818,0.00012329,2]
[401323224,1768137039443,-1030.16010818,0.00012329,2]
[401323225,1768137039452,-1030.16010818,0.00012329,2]
[401323226,1768137039462,-1030.16010818,0.00012329,2]
[401323227,1768137039471,-1030.16010818,0.00012329,2]
[401323228,1768137039480,-1030.16010818,0.00012329,2]
[401323229,1768137039489,-1030.16010818,0.00012329,2]
[401323230,1768137039499,-1030.16010818,0.00012329,2]
[401323231,1768137039508,-1030.16010818,0.00012329,2]
[401323232,1768137039518,-1030.16010818,0.00012329,2]
[401323233,1768137039527,-1030.16010818,0.00012329,2]
[401323234,1768137039537,-1030.16010818,0.00012329,2]
[401323235,1768137039546,-1030.16010818,0.00012329,2]
[401323236,1768137039555,-1030.16010818,0.00012329,2]
[401323237,1768137039564,-1030.16010818,0.00012329,2]
[401323238,1768137039574,-1030.16010818,0.00012329,2]
[401323239,1768137039583,-1030.16010818,0.00012329,2]
[401323240,1768137039593,-1030.16010818,0.00012329,2]
[401323241,1768137039602,-1030.16010818,0.00012329,2]
[401323242,1768137039612,-1030.16010818,0.00012329,2]
[401323243,1768137039621,-1030.16010818,0.00012329,2]
[401323244,1768137039630,-1030.16010818,0.00012329,2]
[401323245,1768137039640,-1030.16010818,0.00012329,2]
[401323246,1768137039650,-1030.16010818,0.00012329,2]
[401323247,1768137039659,-1030.16010818,0.00012329,2]
[401323248,1768137039669,-1030.16010818,0.00012329,2]
[401323249,1768137039678,-1030.16010818,0.00012329,2]
[401323250,1768137039687,-1030.16010818,0.00012329,2]
[401323251,1768137039697,-1030.16010818,0.00012329,2]
[401323252,1768137039706,-1030.16010818,0.00012329,2]
[401323253,1768137039715,-1030.16010818,0.00012329,2]